[Event "15th Tashkent Open Agzamov 2022"]
[Site "Tashkent"]
[Date "2022.05.05"]
[Round "2.1"]
[White "Bernadskiy, Vitaliy"]
[Black "Urazayev, Arystanbek"]
[Result "1/2-1/2"]
[ECO "D31"]
[WhiteElo "2636"]
[BlackElo "2445"]
[Annotator "TA"]
[PlyCount "49"]
[EventDate "2022.05.05"]
[EventType "swiss"]
[EventCountry "UZB"]
[SourceTitle "playchess.com"]
[Source "ChessBase"]
[SourceQuality "1"]
[TimeControl "5400+30"]

{[%evp 9,49,0,0,3,0,2,0,8,10,-13,0,-10,0,-27,-17,-13,-18,-54,-40,-33,-21,-19,-18,-49,-55,-45,-29,-39,-7,-22,-6,-10,-10,-22,0,0,0,-56,0,-11,-9,-60]} 1. c4 {[%emt 0:04:44]} e6 {[%emt 0:00:33]} 2. Nc3 {[%emt 0:00:16]} d5 {[%emt 0:00:08]} 3. d4 {[%emt 0:00:04]} a6 {[%emt 0:01:45]} 4. g3 {[%emt 0:06:43]} dxc4 {[%emt 0:05:20]} 5. Bg2 {[%emt 0:00:05]} Nf6 {[%emt 0:05:31]} 6. Qa4+ {[%emt 0:03:53] D31: Queen's Gambit Declined: Semi-Slav without ...Nf6 (+ Marshall Gambit and Noteboom) and Exchange Variation lines without ...Nf6.} Nbd7 {[%emt 0:04:23]} 7. Qxc4 {[%emt 0:00:49]} b5 {[%emt 0:02:10]} 8. Qd3 {[%emt 0:00:34]} Rb8 {[%emt 0:00:14] [#]} 9. Nh3 $146 {[%emt 0:06:00]} ({Predecessor:} 9. Bf4 Bd6 10. Nf3 Bb7 11. O-O Bxf4 12. gxf4 c5 13. dxc5 Nxc5 14. Qxd8+ Rxd8 15. Rac1 {½-½ (31) Xu,J (2498)-Zhou,W (2563) Beijing 2009}) 9... Bb7 {[%emt 0:02:51]} 10. Bxb7 {[%emt 0:02:21]} Rxb7 {[%emt 0:00:03]} 11. Be3 {[%emt 0:01:05]} c5 {[%emt 0:06:12]} 12. dxc5 {[%emt 0:01:03]} Bxc5 {[%emt 0:00:52]} 13. Rd1 {[%emt 0:01:53] [#] And now Bxc5 would win.} Bxe3 {[%emt 0:01:06]} 14. Qxe3 {[%emt 0:00:10]} O-O {[%emt 0:01:45]} 15. O-O {[%emt 0:01:33][%cal Bh1f1,Bf1d1,Bd1d8][%mdl 32]} Qb6 {[%emt 0:01:20]} 16. Qf4 {[%emt 0:03:16]} h6 {[%emt 0:07:32]} 17. Rd6 {[%emt 0:10:23]} Qa7 {[%emt 0:03:49]} 18. Rfd1 {[%emt 0:01:32]} Rc8 {[%emt 0:02:29]} 19. Ne4 {[%emt 0:01:59]} Rbc7 {[%emt 0:10:52]} 20. Nxf6+ {[%emt 0:03:19]} Nxf6 {[%emt 0:00:28]} 21. Rd8+ {[%emt 0:04:46]} Rxd8 {[%emt 0:01:15]} 22. Rxd8+ {[%emt 0:00:07]} Kh7 {[%emt 0:00:07]} 23. Qd2 {[%emt 0:07:17] Against Rc2} (23. Qf3 $11) 23... Qb7 {[%emt 0:04:56]} ({Better is} 23... g5 $15) 24. f3 {[%emt 0:04:29]} Qb6+ {[%emt 0:09:35]} 25. Nf2 {[%emt 0:04:31] Weighted Error Value: White=0.15 (very precise) /Black=0.09 (flawless)} (25. Kg2 $11) 1/2-1/2

[Event "15th Tashkent Open Agzamov 2022"]
[Site "Tashkent"]
[Date "2022.05.05"]
[Round "2.2"]
[White "Sindarov, Javokhir"]
[Black "Assaubayeva, Bibisara"]
[Result "1-0"]
[ECO "B90"]
[WhiteElo "2609"]
[BlackElo "2439"]
[Annotator "TA"]
[PlyCount "77"]
[EventDate "2022.05.05"]
[EventType "swiss"]
[EventCountry "UZB"]
[SourceTitle "playchess.com"]
[Source "ChessBase"]
[SourceQuality "1"]
[TimeControl "5400+30"]

{[%evp 10,77,20,0,12,0,0,0,0,0,2,0,0,0,0,0,0,0,37,38,37,34,66,82,83,70,89,64,69,72,88,95,96,61,64,55,47,64,58,61,139,140,140,140,135,139,135,118,134,131,154,147,147,140,139,131,172,162,220,210,216,216,261,261,252,243,254,253,662,640]} 1. e4 {[%emt 0:05:00]} c5 {[%emt 0:00:12]} 2. Nf3 {[%emt 0:00:11][%cal Bg1f3,Bf3d4,Bd4f5][%mdl 32]} d6 {[%emt 0:00:08][%cal Bd7d6,Bd6d5,Bd5d4][%mdl 32]} 3. d4 {[%emt 0:00:04]} cxd4 {[%emt 0:00:07]} 4. Nxd4 {[%emt 0:00:03]} Nf6 {[%emt 0:00:09]} 5. Nc3 {[%emt 0:00:05]} a6 {[%emt 0:00:08]} 6. a3 {[%emt 0:00:03]} e5 {[%emt 0:00:31] B90: Sicilian Najdorf: Unusual White 6th moves, 6 Be3 Ng4 and 6 Be3 e5.} 7. Nf5 $1 {[%emt 0:00:07] 7.Nf5 scores better than 7.Nf3.} d5 {[%emt 0:00:06]} 8. Bg5 {[%emt 0:00:05][%cal Rc3d5]} d4 {[%emt 0:00:08] The position is equal.} 9. Bxf6 {[%emt 0:00:04]} gxf6 {[%emt 0:00:07]} 10. Nb1 {[%emt 0:00:03][%cal Bc3b1,Bb1d2,Bd2e4][%mdl 32]} ({But not} 10. Bc4 $2 Bxf5 11. exf5 dxc3 $19) 10... Bxf5 {[%emt 0:01:33]} 11. exf5 {[%emt 0:00:04]} Qd5 {[%emt 0:00:10]} 12. Qd3 {[%emt 0:00:10]} Nd7 {[%emt 0:00:06]} 13. Nd2 {[%emt 0:00:05]} Bh6 {[%emt 0:06:35]} 14. Ne4 {[%emt 0:04:01] [#]} Qc6 $146 {[%emt 0:08:48]} ({Predecessor:} 14... Rc8 15. c4 Rxc4 16. Be2 Rc6 17. b4 Ke7 18. O-O Rhc8 19. Bd1 Rc1 20. Bb3 Qb5 21. Qxb5 axb5 22. Rfxc1 Rxc1+ 23. Rxc1 Bxc1 {1-0 (52) Raczynski,K (2194)-Majek,K (2100) Krakow 2021}) 15. Be2 {[%emt 0:06:38][%cal Bf1e2,Be2f3,Bf3e4][%mdl 32]} Nc5 {[%emt 0:09:42]} 16. Nxc5 {[%emt 0:00:47]} Qxc5 {[%emt 0:00:02]} 17. Bf3 {[%emt 0:01:59]} Qa5+ {[%emt 0:08:28]} 18. Ke2 {[%emt 0:04:17]} Qc7 {[%emt 0:05:11]} 19. Rhd1 {[%emt 0:02:03]} O-O-O {[%emt 0:08:14]} 20. Be4 {[%emt 0:03:12]} Kb8 {[%emt 0:03:51]} 21. a4 {[%emt 0:05:10][%cal Ba3a4,Ba4a5][%mdl 32]} Bf8 {[%emt 0:04:59]} 22. b4 {[%emt 0:01:35]} Bxb4 {[%emt 0:07:44]} 23. a5 $1 {[%emt 0:01:07] aiming for Rdb1.} Rd7 $1 {[%emt 0:01:07]} 24. Rab1 {[%emt 0:15:30]} Qc3 {[%emt 0:07:13] [#] Black is now going downhill.} (24... Qxa5 $14 25. Qb3 Bc3) 25. Rb3 $1 $16 {[%emt 0:01:01] The board is on fire.} Qxd3+ {[%emt 0:27:41]} 26. cxd3 {[%emt 0:00:06]} Bxa5 {[%emt 0:00:00]} 27. Ra1 {[%emt 0:00:29]} Bd8 {[%emt 0:00:00]} 28. Rxa6 {[%emt 0:00:06]} Rg8 {[%emt 0:00:00]} 29. Rb1 {[%emt 0:01:38][%mdl 1024] White has strong compensation.} h6 {[%emt 0:00:00]} 30. g3 {[%emt 0:00:19]} Rh8 {[%emt 0:00:00]} 31. Kf3 {[%emt 0:00:21] White is much more active.} Rg8 {[%emt 0:00:00]} 32. Ra2 {[%emt 0:03:26]} Rg5 {[%emt 0:00:00]} 33. Rab2 {[%emt 0:11:52][%cal Rb2b7]} b6 {[%emt 0:00:00]} (33... Kc7 $142 34. Rxb7+ Kd6) 34. Rc2 $18 {[%emt 0:00:07] [#] Ra1 is the strong threat.} Rg8 {[%emt 0:00:00]} 35. Rc6 {[%emt 0:00:11]} h5 {[%emt 0:01:38]} 36. Rbc1 {[%emt 0:00:44] Intending Rc8+ and mate.} Rc7 {[%emt 0:01:18] Prevents Rc8+.} 37. Rxb6+ {[%emt 0:00:08]} Kc8 {[%emt 0:00:03]} 38. Bc6 {[%emt 0:01:34]} Rg5 $2 {[%emt 0:01:34]} (38... e4+ 39. dxe4 Ra7) 39. Ra6 {[%emt 0:00:21] Weighted Error Value: White=0.03 (flawless) /Black=0.22 (precise)} 1-0

[Event "15th Tashkent Open Agzamov 2022"]
[Site "Tashkent"]
[Date "2022.05.05"]
[Round "2.3"]
[White "Agmanov, Zhandos"]
[Black "Iskandarov, Misratdin"]
[Result "1-0"]
[ECO "C84"]
[WhiteElo "2420"]
[BlackElo "2601"]
[Annotator "TA"]
[PlyCount "117"]
[EventDate "2022.05.05"]
[EventType "swiss"]
[EventCountry "UZB"]
[SourceTitle "playchess.com"]
[Source "ChessBase"]
[SourceQuality "1"]
[TimeControl "5400+30"]

{[%evp 17,117,6,35,31,35,35,32,26,72,39,57,25,50,45,25,30,45,33,32,43,20,26,81,60,102,77,121,100,106,92,89,27,12,0,0,0,0,0,54,59,77,78,265,252,243,235,242,239,266,283,269,294,315,114,400,389,463,185,178,172,314,316,1817,734,715,424,424,424,4684,1113,984,423,5118,0,752,0,297,0,1604,1468,5057,261,456,392,404,398,372,352,345,0,0,0,329,317,1675,306,29977,29978,29982,29983,29988,29989]} 1. e4 {[%emt 0:00:11] Reeh,O} e5 {[%emt 0:04:33]} 2. Nf3 {[%emt 0:00:40]} Nc6 {[%emt 0:00:06]} 3. Bb5 {[%emt 0:01:40]} a6 {[%emt 0:00:08]} 4. Ba4 {[%emt 0:00:06]} Nf6 {[%emt 0:00:07]} 5. O-O {[%emt 0:03:37]} Be7 {[%emt 0:00:08]} 6. d3 {[%emt 0:04:57]} d6 {[%emt 0:00:37]} 7. c3 {[%emt 0:04:25]} O-O {[%emt 0:00:22]} 8. Re1 {[%emt 0:02:36]} b5 {[%emt 0:05:40]} 9. Bc2 {[%emt 0:02:13]} Re8 {[%emt 0:00:09]} 10. Nbd2 {[%emt 0:03:41] C84: Closed Ruy Lopez: Unusual White 6th moves.} Bf8 {[%emt 0:01:07]} 11. a4 {[%emt 0:01:02] Black must now prevent axb5.} Rb8 {[%emt 0:01:56]} 12. Nf1 {[%emt 0:03:10] White is slightly better.} g6 {[%emt 0:13:33]} (12... b4 $11 {deserves consideration.}) 13. Ng3 {[%emt 0:01:34]} Bg7 {[%emt 0:00:24]} 14. h3 {[%emt 0:02:58]} b4 {[%emt 0:03:16]} 15. a5 {[%emt 0:02:50]} bxc3 {[%emt 0:01:50]} 16. bxc3 {[%emt 0:00:27] [#]} Na7 $146 {[%emt 0:00:22]} ({Predecessor:} 16... Bd7 17. Bb3 Rb5 18. Ba4 Rxa5 19. Ra3 Rc5 20. d4 exd4 21. cxd4 Rb5 22. Bxb5 axb5 {1-0 (44) Jakovenko,D (2691)-Akopian,V (2700) Moscow 2007 CBM 117 [Reeh,O]}) 17. Be3 {[%emt 0:04:58]} c5 {[%emt 0:03:39]} 18. d4 {[%emt 0:01:09]} exd4 {[%emt 0:02:21]} 19. cxd4 {[%emt 0:00:07]} cxd4 {[%emt 0:02:56]} (19... Nd7 $11) 20. Nxd4 $16 {[%emt 0:02:48][%cal Od4f5]} Rb7 {[%emt 0:07:30]} 21. Qd2 {[%emt 0:12:30]} h5 {[%emt 0:08:47]} 22. Bg5 {[%emt 0:03:56]} Nb5 {[%emt 0:10:12]} 23. Nxb5 {[%emt 0:03:58] White is more active.} Rxb5 {[%emt 0:00:10]} 24. Bd3 {[%emt 0:08:33]} (24. Ba4 $16 Rxg5 25. Qxg5) 24... Rbe5 $11 {[%emt 0:02:42]} 25. f4 {[%emt 0:03:16]} Rxg5 {[%emt 0:02:41]} 26. fxg5 {[%emt 0:00:05]} Nh7 {[%emt 0:01:51][%csl LRa1,LRg5]} 27. Rac1 {[%emt 0:01:22]} h4 {[%emt 0:04:26]} (27... Nxg5 $11 28. Rxc8 Nxh3+ 29. gxh3 Qxc8) 28. Ne2 $14 {[%emt 0:02:28][%cal Bg3e2,Be2d4,Bd4c6,Bc6e7][%mdl 32]} Re5 {[%emt 0:02:45]} 29. Nd4 {[%emt 0:01:16]} Rxg5 $2 {[%emt 0:13:40]} (29... Bxh3 $16 30. Nf3 (30. gxh3 Rxg5+ 31. Kh1 Bxd4 $11) (30. Bxa6 Rxa5 31. Bf1 Qxg5 $11) 30... Bd7) 30. Nc6 $18 {[%emt 0:00:44]} Qe8 {[%emt 0:00:06] [#]} 31. Ne7+ $1 {[%emt 0:00:17][%mdl 512]} Qxe7 {[%emt 0:00:05]} 32. Rxc8+ {[%emt 0:00:04]} Nf8 {[%emt 0:00:06]} 33. Bc4 {[%emt 0:06:12] And now Rf1 would win.} Kh7 {[%emt 0:06:11] [#]} 34. Bxf7 $1 {[%emt 0:04:59][%mdl 512] Chess con chili.} Rg3 {[%emt 0:00:33]} (34... Qe5 35. Qf2) 35. Qf4 {[%emt 0:10:22]} (35. Ba2 $18) 35... Bh6 $2 {[%emt 0:01:58][%mdl 8192]} (35... Be5 $16 {was worth a try.} 36. Qf2 Ne6 37. Bxe6 (37. Re8 Qxe8 38. Bxe8 Bd4 $16) 37... Qxe6 38. Rc7+ Kh6) 36. Qf2 {[%emt 0:00:58]} Qd7 {[%emt 0:00:18]} 37. Rxf8 {[%emt 0:01:23]} Bxf8 {[%emt 0:00:05]} 38. Bxg6+ $1 {[%emt 0:00:04]} Kxg6 {[%emt 0:01:37]} (38... Rxg6 {was necessary.} 39. Qxf8 Qa7+ 40. Kh1 Qg7) 39. Qxf8 {[%emt 0:00:02] Threatens to win with Rd1.} Qxh3 $2 {[%emt 0:00:22]} (39... Qg7 40. Qxd6+ Kh7) 40. Qxd6+ {[%emt 0:00:27][%mdl 4096] Endgame KQR-KQR} (40. Re2 $142 Qe6 41. Rd2) 40... Kh7 {[%emt 0:00:05]} 41. Qc7+ {[%emt 0:00:19]} (41. Re2 Rg7 $16) 41... Kh6 {[%emt 0:00:05][%csl Gg3][%cal Rh3g2]} 42. Qc6+ {[%emt 0:00:27]} (42. Re2 Qg4 $16) 42... Kh5 {[%emt 0:00:19]} (42... Kh7 $142 43. Qb7+ Kh8 44. Qa8+ Kh7 45. Qb7+ Kh8 46. Qb8+ Kh7 47. Qc7+ Kh6 48. Qc6+ (48. Re2 Qg4 $16) 48... Kh7 49. Qb7+) 43. Qd5+ {[%emt 0:01:44]} (43. Qe8+ $142 Kh6 44. Re2 Rxg2+ 45. Rxg2 Qe3+ 46. Kf1 Qf3+ 47. Ke1 Qe3+ 48. Kd1 (48. Kf1 Qf3+ 49. Ke1 Qe3+ 50. Kd1 Qb3+ 51. Ke2 Qc4+ 52. Kf3 Qf1+ 53. Ke3 Qc1+ 54. Kd4 Qd1+ 55. Kc4 Qf1+ 56. Kd5 Qd1+ 57. Ke6 Qb3+ 58. Ke5 Qc3+ 59. Kd5 Qd3+ 60. Kc5 Qa3+ 61. Kb6 Qb4+ 62. Ka7 Qd4+ 63. Kb7 Qf6) 48... Qd3+ 49. Rd2 Qf1+ 50. Kc2 Qc4+ 51. Kb2 Qb4+ 52. Kc1 Qc3+ 53. Kd1 Qb3+ 54. Ke2 Qc4+ 55. Rd3 Qc2+ 56. Ke3 Qc1+ 57. Kd4) 43... Kh6 {[%emt 0:00:06]} 44. Qd2+ {[%emt 0:00:09]} (44. Re2 Rg6 45. Qd2+ Kh7 $18) (44. e5 $142 {White threatens e6 and mate.} Qf5 45. Rf1) 44... Kg6 {[%emt 0:00:48]} (44... Kh7 $142 45. Rb1 Qc8) 45. Qd6+ {[%emt 0:00:33]} (45. Rb1 $142 Qc8 46. Rb6+ Kh7 47. Rh6+ Kg7 48. Rxh4 Qc5+ 49. Kh1) 45... Kh7 {[%emt 0:00:41][%csl Gg3][%cal Rh3g2]} 46. Qc7+ $2 {[%emt 0:00:22]} ({Not} 46. Re2 Rg7 $16) (46. Qe7+ $1 Kg8 47. Qe8+ (47. Re2 Qc8 $18) 47... Kh7 48. Qf7+ (48. Re2 Rg7 $18) 48... Kh8 49. Qh5+ (49. Re2 Qc8 $18) 49... Kg7 50. Qe5+ Kh7 51. Qc7+ Kh6 52. Qd6+ (52. Re2 Qg4 $18) 52... Kh7) 46... Kh6 $1 {[%emt 0:00:13][%csl Gg3][%cal Rh3g2]} 47. Qc6+ $2 {[%emt 0:00:27]} (47. Re2 Qg4 $16) (47. Qb6+ Kh7 48. Qc7+) 47... Kh5 {[%emt 0:00:14][%csl Gg3][%cal Rh3g2]} 48. e5 {[%emt 0:00:32] Intending e6 and mate.} Qf5 {[%emt 0:00:55]} 49. Qe8+ $2 {[%emt 0:01:00]} (49. e6 {Threatening mate with e7.} Rg6 50. e7 $1 {[%mdl 512]} Rxc6 51. e8=Q+ Rg6 52. Re5) 49... Kg5 $2 {[%emt 0:01:36]} (49... Rg6 {might work better.} 50. Qh8+ Rh6) 50. Qg8+ {[%emt 0:00:48]} Kh5 {[%emt 0:00:04]} 51. Qh8+ {[%emt 0:00:07]} Kg5 {[%emt 0:00:21]} 52. Qd8+ $1 {[%emt 0:00:16]} ({And not} 52. e6 Rxg2+ 53. Kxg2 Qd5+ 54. Kf1 Qf3+ 55. Kg1 Qg4+ 56. Kf2 Qf5+ 57. Ke2 Qxe6+ 58. Kf2 Qf5+ 59. Kg2 Qg4+ 60. Kf2 Qf5+ 61. Kg1 Qg4+ 62. Kf2 Qf4+ 63. Ke2 Qe4+ 64. Kd2 Qd5+ 65. Ke3 Qe6+ 66. Kf2 Qf5+ $11) 52... Kh5 {[%emt 0:00:09]} 53. Qe8+ $2 {[%emt 0:01:23]} (53. Qd1+ $1 $18 Rg4 54. Re3) 53... Kg5 $11 {[%emt 0:00:05]} 54. Qd8+ $2 {[%emt 0:00:28][%mdl 8192]} (54. Rf1 $11 Rxg2+ 55. Kxg2 Qg4+ 56. Kh2 Qg3+ 57. Kh1 Qh3+ 58. Kg1 Qg3+ 59. Kh1 Qh3+ 60. Kg1 Qg3+ 61. Kh1) 54... Kh5 $18 {[%emt 0:00:16] [#]} 55. Qd1+ $1 {[%emt 0:00:17]} Kg6 $2 {[%emt 0:00:11]} (55... Rg4 56. Kh1 Kg6 57. Qd6+ Kg5 58. Qd8+ (58. e6 Re4 $16) 58... Kh6 59. Qh8+ Kg6) 56. Qd6+ {[%emt 0:00:15]} Kh5 $2 {[%emt 0:01:41] [#]} (56... Kg7 $18 57. e6 Qf3 58. Qc7+ Kg8 59. Qb8+ Qf8) 57. e6 $1 {[%emt 0:00:41] White mates.} Qg6 {[%emt 0:01:10]} 58. Qd5+ {[%emt 0:00:29]} Rg5 {[%emt 0:00:36]} 59. Qf3+ {[%emt 0:00:31] Weighted Error Value: White=0.93/Black=0.47} 1-0

[Event "15th Tashkent Open Agzamov 2022"]
[Site "Tashkent"]
[Date "2022.05.05"]
[Round "2.4"]
[White "Sanal, Vahap"]
[Black "Abdisalimov, Abdimalik"]
[Result "1-0"]
[ECO "B51"]
[WhiteElo "2575"]
[BlackElo "2435"]
[Annotator "TA"]
[PlyCount "77"]
[EventDate "2022.05.05"]
[EventType "swiss"]
[EventCountry "UZB"]
[SourceTitle "playchess.com"]
[Source "ChessBase"]
[SourceQuality "1"]
[TimeControl "5400+30"]

{[%evp 9,77,17,25,29,25,29,34,27,22,22,18,14,31,19,20,-28,-26,-25,-19,-21,0,-25,-24,-22,-25,-24,0,-126,-112,-282,-286,-291,-82,-81,-17,-12,22,28,27,27,35,0,0,0,0,0,0,0,0,0,47,46,60,49,502,483,510,488,479,464,589,526,558,473,491,304,475,469,29996,29997]} 1. e4 {[%emt 0:04:10]} c5 {[%emt 0:00:08]} 2. Nf3 {[%emt 0:00:06]} d6 {[%emt 0:00:04]} 3. Bb5+ {[%emt 0:00:14]} Nd7 {[%emt 0:00:26]} 4. O-O {[%emt 0:00:11]} a6 {[%emt 0:00:03]} 5. Bd3 {[%emt 0:00:09]} Ngf6 {[%emt 0:00:06]} 6. Re1 {[%emt 0:00:10] B51: Sicilian: Moscow Variation (3 Bb5+) without 3...Bd7.} g6 {[%emt 0:00:14]} 7. c3 {[%emt 0:00:47]} b5 {[%emt 0:00:05]} 8. Bc2 {[%emt 0:03:09] White is slightly better.} Bg7 {[%emt 0:04:56]} 9. d4 {[%emt 0:00:18]} cxd4 {[%emt 0:00:05]} 10. cxd4 {[%emt 0:00:06]} O-O {[%emt 0:00:04] [#]} 11. Bd2 $5 $146 {[%emt 0:02:21][%mdl 8] New and interesting.} ({Predecessor:} 11. a3 Bb7 12. Nc3 Nb6 13. Qe2 Rc8 14. Bd3 Qc7 15. Bf4 Nh5 16. Be3 Nc4 17. Bxc4 Qxc4 18. Qxc4 Rxc4 {½-½ (51) Pancevski,F (2519)-Nanu,C (2514) Tornelo INT 2021}) 11... a5 {[%emt 0:04:53]} 12. e5 {[%emt 0:15:52]} (12. Nc3 $142) 12... dxe5 $11 {[%emt 0:02:36]} 13. dxe5 {[%emt 0:00:12]} Ng4 {[%emt 0:01:30][%cal Rd7e5]} 14. Bf4 {[%emt 0:04:00]} (14. Be4 Ra6 15. Bf4 Ngxe5 16. Nxe5 Bxe5 17. Bxe5 Nxe5 $17) 14... Qb6 {[%emt 0:08:52]} 15. Qe2 {[%emt 0:06:31]} Bb7 {[%emt 0:02:16] next ...Rac8 is good for Black.} 16. Nbd2 {[%emt 0:00:24]} Rac8 {[%emt 0:08:06]} 17. Rac1 {[%emt 0:04:31]} Nc5 {[%emt 0:15:54]} 18. Bg5 {[%emt 0:12:51]} (18. Ng5 $11 h5 19. h3) 18... Ne6 $1 $17 {[%emt 0:04:50]} 19. Bxe7 $2 {[%emt 0:01:45]} (19. Be3 $17 Nxe3 20. Qxe3 Qxe3 21. fxe3) 19... Rfe8 $1 $19 {[%emt 0:00:49]} 20. Bd6 {[%emt 0:00:12]} Nf4 $2 {[%emt 0:00:29]} (20... Bh6 $19 {and Black stays clearly on top. ...Bxf3 is the strong threat.} 21. h3 Nf4 $1) 21. Qf1 $17 {[%emt 0:00:05]} b4 {[%emt 0:00:07]} (21... a4 $17 {aiming for ...b4.} 22. Be4 Bxe5 23. Nxe5 Nxe5 24. Rxc8 Bxc8 25. Bxe5 Rxe5) 22. Bb3 $1 $11 {[%emt 0:07:37]} Rxc1 {[%emt 0:38:59]} (22... Nxf2 {keeps more tension.} 23. Rxc8 N2h3+ 24. Kh1 Rxc8 25. gxh3 Qd4) 23. Rxc1 {[%emt 0:00:55][%cal Ob3f7] Really sharp!} Bxf3 {[%emt 0:00:45]} ({But not} 23... Bxe5 {[#]} 24. Bxf7+ $1 {[%mdl 512]} (24. Nc4 Qc6 $16) 24... Kxf7 25. Nc4 $1 $16) (23... Nxe5 24. Bxe5 Bxe5 25. Re1 $16 (25. Nc4 Qf6 $14)) 24. Nxf3 {[%emt 0:01:12]} Bxe5 {[%emt 0:00:13]} 25. Nxe5 {[%emt 0:18:33]} Nxe5 {[%emt 0:00:11]} 26. Ba4 {[%emt 0:02:54]} Re6 $1 {[%emt 0:02:22]} 27. Bc5 {[%emt 0:04:18]} Qb7 {[%emt 0:01:00]} 28. Rd1 {[%emt 0:03:48] Against Ned3} h5 {[%emt 0:03:27][%cal Oe5f3] And now ...Nf3+! would win.} 29. Bb3 {[%emt 0:01:46] This bishop pair is nice.} Re8 {[%emt 0:00:30]} (29... Rf6 $1 $11 {is more appropriate.}) 30. Be3 $36 {[%emt 0:00:46][%mdl 2048] White is pushing.} g5 {[%emt 0:00:53]} 31. h3 {[%emt 0:01:45]} (31. h4 $5) 31... Nxh3+ $2 {[%emt 0:00:34][%mdl 8192]} 32. gxh3 $18 {[%emt 0:01:09]} Nf3+ {[%emt 0:00:13]} 33. Kh1 {[%emt 0:00:06] Threatens to win with Bd5.} Re5 {[%emt 0:00:06] Inhibits Bd5.} 34. Qg2 {[%emt 0:00:20]} g4 {[%emt 0:00:38]} 35. Rc1 {[%emt 0:02:06]} Qd7 {[%emt 0:00:28]} 36. Bd1 {[%emt 0:00:27]} Nh4 {[%emt 0:00:57]} 37. Qa8+ {[%emt 0:00:32]} Kg7 {[%emt 0:00:05]} (37... Re8 $142 38. Qc6 (38. Qxa5 Qb7+ 39. f3 Nxf3 $15) 38... Qxc6+ 39. Rxc6 Nf5 40. hxg4 hxg4) 38. Qc6 {[%emt 0:00:28]} Qd3 {[%emt 0:00:54]} (38... Qxc6+ $18 39. Rxc6 Nf5) 39. Qh6+ {[%emt 0:00:14] Quite a comeback for White.  Weighted Error Value: White=0.30/Black=0.53} 1-0

[Event "15th Tashkent Open Agzamov 2022"]
[Site "Tashkent"]
[Date "2022.05.05"]
[Round "2.5"]
[White "Tillyaev, Ulugbek"]
[Black "Romanov, Evgeny"]
[Result "0-1"]
[ECO "A50"]
[WhiteElo "2334"]
[BlackElo "2573"]
[Annotator "TA"]
[PlyCount "78"]
[EventDate "2022.05.05"]
[EventType "swiss"]
[EventCountry "UZB"]
[SourceTitle "playchess.com"]
[Source "ChessBase"]
[SourceQuality "1"]
[TimeControl "5400+30"]

{[%evp 16,78,2,16,17,18,19,18,22,16,21,16,19,21,33,16,16,16,16,6,17,16,22,0,0,0,20,7,0,0,0,0,0,0,6,-69,-77,-180,-105,-114,-12,-13,0,-208,-221,-223,-222,-215,-214,-216,-121,-278,-281,-362,-376,-373,-379,-481,-449,-461,-456,-586,-547,-529,-422]} 1. Nf3 {[%emt 0:00:05]} Nf6 {[%emt 0:04:19]} 2. c4 {[%emt 0:00:12]} b6 {[%emt 0:01:22]} 3. g3 {[%emt 0:00:41]} Bb7 {[%emt 0:00:08]} 4. Bg2 {[%emt 0:00:07]} g6 {[%emt 0:00:26]} 5. O-O {[%emt 0:00:36]} Bg7 {[%emt 0:00:10]} 6. Nc3 {[%emt 0:04:27]} O-O {[%emt 0:00:38]} 7. d4 {[%emt 0:03:19]} Ne4 {[%emt 0:00:12]} 8. Nxe4 {[%emt 0:00:21]} Bxe4 {[%emt 0:00:09]} 9. Be3 {[%emt 0:01:19]} c5 {[%emt 0:02:24] A50: Queen's Fianchetto Defence (1 d4 Nf6 2 c4 b6).} 10. Qd2 {[%emt 0:00:19]} d6 {[%emt 0:00:57]} 11. Bh6 {[%emt 0:02:10]} Nd7 {[%emt 0:00:37] The position is equal.} 12. Bxg7 {[%emt 0:08:57]} Kxg7 {[%emt 0:00:16]} 13. Rfd1 {[%emt 0:05:14]} Qc7 {[%emt 0:01:12] [#]} 14. b3 $146 {[%emt 0:03:05]} ({Predecessor:} 14. Rac1 Qb7 15. b3 cxd4 16. Qxd4+ Nf6 17. Nh4 Rfc8 18. Bxe4 Qxe4 19. Qxe4 Nxe4 20. Ng2 {½-½ (59) Esipenko,A (2445)-Eliseev,U (2601) Moscow 2016}) 14... Qb7 {[%emt 0:01:07]} 15. h4 {[%emt 0:15:18]} Nf6 {[%emt 0:00:53]} 16. Ne1 {[%emt 0:00:39]} (16. Bh3 {keeps more tension.} e6 17. Ng5 Bc6 18. d5) 16... Bxg2 {[%emt 0:05:35]} 17. Nxg2 {[%emt 0:00:22]} Rac8 {[%emt 0:02:04]} 18. Rac1 {[%emt 0:10:41]} b5 {[%emt 0:15:21]} 19. Ne3 {[%emt 0:06:53]} bxc4 {[%emt 0:05:22]} 20. Rxc4 {[%emt 0:03:21]} cxd4 {[%emt 0:00:33]} 21. Qxd4 {[%emt 0:01:34]} Rxc4 {[%emt 0:00:29]} 22. bxc4 {[%emt 0:06:48]} Qe4 {[%emt 0:03:45]} 23. Qb2 {[%emt 0:09:44]} Rc8 {[%emt 0:13:36]} 24. Rd3 {[%emt 0:00:51]} Rc5 {[%emt 0:02:58]} 25. Nd5 {[%emt 0:02:31]} (25. Ra3 $11) 25... Qxc4 $15 {[%emt 0:04:57]} 26. Nxe7 {[%emt 0:06:21]} (26. Nxf6 $17 Qc1+ 27. Qxc1 Rxc1+ 28. Kg2 Kxf6 29. Ra3) 26... Rb5 {[%emt 0:02:02]} ({Better is} 26... Qe6 $1 $19 {[%cal Re6e7]} 27. Re3 Re5 28. Rxe5 dxe5) 27. Qa1 $17 {[%emt 0:07:30]} Qe4 {[%emt 0:05:56]} (27... Qc2 $17 {Threatens to win with ...Rb1+.} 28. Qc3 Rb1+ 29. Kg2 Qxe2) 28. a4 $11 {[%emt 0:00:06]} Qxe2 {[%emt 0:12:41] And now ...Rb2 would win.} 29. Nd5 $2 {[%emt 0:00:35]} (29. axb5 $11 {and White has nothing to worry.} Qxd3 30. g4) 29... Rb2 $19 {[%emt 0:01:31]} ({Don't do} 29... Qxd3 30. Qxf6+ Kh6 31. Qg5+ Kg7 32. axb5 Qd1+ 33. Kg2 $18) 30. Qf1 {[%emt 0:00:51] [#]} Qxf1+ $1 {[%emt 0:02:03]} 31. Kxf1 {[%emt 0:00:01][%mdl 4096] Endgame KRN-KRN} Ne4 {[%emt 0:00:12]} 32. Rd4 {[%emt 0:00:58]} f5 {[%emt 0:03:42]} ({Worse is} 32... Nxf2 33. Nc3 $17) ({Black should play} 32... Rxf2+ $19 33. Ke1 {[#]} Rf5 $1) 33. g4 $2 {[%emt 0:00:30] This move loses the game for White.} (33. Ke1 $17 {keeps fighting.}) 33... Rxf2+ {[%emt 0:00:30]} 34. Ke1 {[%emt 0:00:08][%cal Od4e4]} Ra2 {[%emt 0:01:04]} ({Not} 34... fxg4 35. Rxe4 g3 36. Rf4 $14) 35. gxf5 {[%emt 0:00:04]} gxf5 {[%emt 0:00:12]} 36. Ne3 {[%emt 0:01:20]} Kf6 {[%emt 0:00:39] Hoping for ...a5. Black is clearly winning.} 37. Rb4 {[%emt 0:00:23]} a5 {[%emt 0:01:24]} 38. Rd4 {[%emt 0:00:15]} Ke6 {[%emt 0:00:58]} 39. Rd3 {[%emt 0:00:53]} Ke5 {[%emt 0:07:36] Weighted Error Value: White=0.33/Black=0.15 (very precise)} 0-1